bitfinex-derivatives/quotes_SOLF0:USTF0_20220110
["timestamp","ask_amount","ask_price","bid_price","bid_amount"]
[1641805300196,25.03304886,141.66,141.65,5.64762359]
[1641805300398,59.91526746,141.7,141.65,11.41162359]
[1641805300599,59.91526746,141.7,141.66,5.764]
[1641805300801,59.91526746,141.7,141.66,10.362]
[1641805301001,1.60166056,141.69,141.66,14.36237307]
[1641805301401,1.60166056,141.69,141.67,4.00037307]
[1641805303203,1.60166056,141.69,141.65,11.41162359]
[1641805303204,1.60166056,141.69,141.66,4.00037307]
[1641805303604,1.60166056,141.69,141.66,8.00037307]
[1641805304206,1.60166056,141.69,141.67,4.00037307]
[1641805305005,1.60166056,141.69,141.66,4.00037307]
[1641805305506,1.60166056,141.69,141.66,8.00037307]
[1641805306006,1.60166056,141.69,141.66,4.00037307]
[1641805306307,1.60166056,141.69,141.67,4.00037307]
[1641805306806,1.60166056,141.7,141.66,4.00037307]
[1641805307206,37.709,141.71,141.68,4.00037307]
[1641805307405,39.93149741,141.72,141.68,4.00037307]
[1641805307406,4.0,141.7,141.68,4.00037307]
[1641805307608,9.026,141.7,141.66,4.00037307]
[1641805308010,9.026,141.7,141.65,4.00037307]
[1641805309112,4.0,141.68,141.65,4.00037307]
[1641805309309,4.0,141.67,141.65,4.00037307]
[1641805309508,13.225,141.67,141.59,8.54388206]
[1641805309910,13.225,141.67,141.6,4.00086741]
[1641805310313,9.225,141.67,141.6,4.00086741]
[1641805310713,4.0,141.7,141.6,12.74986741]
[1641805311314,4.0,141.7,141.61,4.00086741]
[1641805312117,4.0,141.69,141.61,4.00086741]
[1641805314416,4.0,141.7,141.61,4.00086741]
[1641805314615,4.0,141.7,141.61,11.11886741]
[1641805315015,4.0,141.7,141.61,15.11886741]
[1641805315416,4.0,141.7,141.62,4.00086741]
[1641805320221,4.0,141.7,141.62,8.00086741]
[1641805320621,5.64554982,141.71,141.63,4.00086741]
[1641805321921,5.64554982,141.71,141.63,8.00086741]
[1641805322421,1.60315679,141.7,141.64,4.00086741]
[1641805323724,1.60315679,141.71,141.64,4.00086741]
[1641805324728,5.60315679,141.71,141.64,4.00086741]
[1641805325125,16.55490328,141.7,141.63,4.00086741]
[1641805325327,16.55490328,141.7,141.63,8.00086741]
[1641805325526,1.60315679,141.69,141.63,8.00086741]
[1641805325925,1.60315679,141.69,141.64,4.00086741]
[1641805326126,1.60315679,141.69,141.64,13.34686741]
[1641805326928,1.60315679,141.69,141.65,4.00086741]
[1641805328130,1.60315679,141.69,141.63,8.00086741]
[1641805328731,1.60315679,141.69,141.64,8.00086741]
[1641805328933,1.60315679,141.69,141.64,4.00086741]
[1641805330134,1.60315679,141.69,141.64,5.76486741]
[1641805330835,1.60315679,141.69,141.65,4.00086741]
[1641805333637,1.60315679,141.69,141.65,8.00086741]
[1641805333837,1.60315679,141.69,141.66,25.764]
[1641805334039,1.60315679,141.69,141.66,29.76486741]
[1641805334539,1.60315679,141.69,141.67,4.00086741]
[1641805334739,1.60315679,141.69,141.68,1.764]
[1641805335539,1.60315679,141.69,141.68,5.76486741]
[1641805336140,14.95174649,141.7,141.68,5.76486741]
[1641805336340,14.95174649,141.7,141.69,29.64602876]
[1641805336539,99.85915155,141.76,141.72,5.64488091]
[1641805336742,99.85915155,141.76,141.72,13.95888091]
[1641805336942,99.85915155,141.76,141.73,1.762]
[1641805337343,99.85915155,141.76,141.74,3.9972957]
[1641805338746,1.44103269,141.75,141.74,3.9972957]
[1641805339147,7.23003269,141.75,141.74,3.9972957]
[1641805339347,7.23003269,141.75,141.7,1.762]
[1641805339548,7.23003269,141.75,141.69,18.33221453]
[1641805339950,11.23003269,141.75,141.69,18.33221453]
[1641805340148,4.0,141.74,141.69,9.7950124]
[1641805340348,9.789,141.75,141.69,9.7950124]
[1641805340548,2.80143363,141.73,141.7,3.99879198]
[1641805341050,2.80143363,141.74,141.7,3.99879198]
[1641805343049,2.80143363,141.74,141.7,16.50779198]
[1641805343450,2.80143363,141.75,141.7,12.50779198]
[1641805343851,2.80143363,141.74,141.71,3.99879198]
[1641805344450,2.80143363,141.73,141.71,3.99879198]
[1641805344851,2.80143363,141.72,141.71,3.99879198]
[1641805346155,99.85915155,141.76,141.71,3.99879198]
[1641805346553,2.31929169,141.75,141.71,3.99879198]
[1641805346756,4.0,141.72,141.71,3.99879198]
[1641805346955,7.728,141.72,141.71,3.99879198]
[1641805347456,14.04729169,141.72,141.7,3.99879198]
[1641805347857,2.31929169,141.71,141.7,3.99879198]
[1641805348056,6.31929169,141.71,141.7,3.99879198]
[1641805353066,6.31929169,141.71,141.65,7.05542033]
[1641805353363,4.0,141.7,141.64,33.4828]
[1641805353563,4.0,141.7,141.62,15.45157156]
[1641805353763,4.0,141.7,141.62,50.46807156]
[1641805353965,4.0,141.7,141.63,2.42260251]
[1641805354565,3.12021893,141.69,141.64,3.99959333]
[1641805355064,3.12021893,141.71,141.64,7.99959333]
[1641805355463,3.12021893,141.72,141.65,3.99959333]
[1641805355664,3.12021893,141.72,141.65,5.76359333]
[1641805356366,3.12021893,141.72,141.66,3.99959333]
[1641805361370,7.12021893,141.72,141.66,3.99959333]
[1641805361874,3.12021893,141.72,141.66,7.99959333]
[1641805362071,3.12021893,141.72,141.68,4.0]
[1641805362272,3.12021893,141.72,141.67,15.41021382]
[1641805362472,3.12021893,141.72,141.67,11.41021382]
[1641805362672,3.12021893,141.75,141.68,3.99959333]
[1641805362972,7.12021893,141.75,141.68,3.99959333]
[1641805363271,2.55141653,141.74,141.68,3.99959333]
[1641805363473,5.67163546,141.74,141.68,5.76359333]
[1641805363973,3.12021893,141.73,141.69,3.99959333]
[1641805365673,3.12021893,141.73,141.68,3.99959333]
[1641805366776,3.12021893,141.73,141.68,5.76359333]
[1641805367479,3.12021893,141.73,141.69,3.99959333]
[1641805367682,3.12021893,141.73,141.69,9.82859333]
[1641805368685,3.12021893,141.73,141.7,3.99959333]
[1641805370084,3.12021893,141.73,141.7,5.76359333]
[1641805370784,3.12021893,141.73,141.71,3.99959333]
[1641805375087,3.12021893,141.73,141.72,1.764]
[1641805375587,3.12021893,141.73,141.72,5.76359333]
[1641805375787,3.12021893,141.73,141.72,13.04659333]
[1641805377088,3.12021893,141.73,141.72,14.80859333]
[1641805377390,2.55141653,141.74,141.72,14.80859333]
[1641805377992,2.55141653,141.74,141.72,10.809]
[1641805378393,2.55141653,141.74,141.73,3.99783882]
[1641805379492,2.55141653,141.74,141.72,3.99783882]
[1641805379695,2.55141653,141.74,141.73,3.99783882]
[1641805380093,2.55141653,141.74,141.72,3.99783882]
[1641805380299,11.57541653,141.74,141.72,3.99783882]
[1641805380501,11.57541653,141.74,141.69,7.713]
[1641805380502,15.57541653,141.74,141.69,7.713]
[1641805381294,4.0,141.73,141.69,7.713]
[1641805381493,15.57541653,141.74,141.69,7.713]
[1641805381695,4.0,141.73,141.69,7.713]
[1641805381894,15.57541653,141.74,141.7,3.28014937]
[1641805382096,11.57541653,141.74,141.7,3.28014937]
[1641805382496,2.55141653,141.74,141.7,3.28014937]
[1641805383694,2.55141653,141.74,141.7,5.04414937]
[1641805384098,2.55141653,141.74,141.71,3.28014937]
[1641805385001,2.55141653,141.74,141.71,10.33233555]
[1641805385401,2.55141653,141.74,141.72,5.04214937]
[1641805385603,2.55141653,141.74,141.72,12.43614937]
[1641805385803,2.55141653,141.74,141.73,3.28014937]
[1641805387007,2.55141653,141.74,141.73,6.287]
[1641805387207,99.85915155,141.76,141.73,6.287]
[1641805387405,83.74184811,141.76,141.73,6.287]
[1641805387610,83.74184811,141.76,141.74,1.762]
[1641805388007,82.93861342,141.76,141.75,3.28014937]
[1641805389209,36.0226,141.82,141.75,3.28014937]
[1641805389210,32.0226,141.82,141.75,3.28014937]
[1641805389410,36.0226,141.82,141.76,1.762]
[1641805389609,36.0226,141.82,141.75,5.04214937]
[1641805389810,32.0226,141.82,141.75,5.04214937]
[1641805390013,32.0226,141.82,141.76,27.28014937]
[1641805390215,38.2374,141.85,141.77,1.762]
[1641805390410,4.0,141.86,141.77,5.04214937]
[1641805390610,4.0,141.87,141.78,33.8004]
[1641805390810,4.0,141.86,141.79,1.762]
[1641805391010,4.0,141.86,141.79,8.306]
[1641805391212,4.0,141.86,141.8,3.28014937]
[1641805392212,39.191,141.88,141.8,3.28014937]
[1641805392413,39.191,141.88,141.81,1.762]
[1641805392614,35.191,141.88,141.81,1.762]
[1641805393013,35.191,141.88,141.82,3.28014937]
[1641805393514,3.77728709,141.87,141.82,3.28014937]
[1641805394313,3.77728709,141.87,141.81,3.28014937]
[1641805395318,3.77728709,141.87,141.81,8.9213078]
[1641805395516,3.77728709,141.87,141.82,1.762]
[1641805395916,3.77728709,141.87,141.83,3.28014937]
[1641805396118,3.77728709,141.87,141.83,12.52614937]
[1641805396717,3.77728709,141.87,141.84,3.28014937]
[1641805397921,3.77728709,141.87,141.84,7.28014937]
[1641805398121,3.77728709,141.89,141.84,3.28014937]
[1641805398321,3.77728709,141.89,141.84,5.04214937]
[1641805398920,3.77728709,141.89,141.85,3.28014937]
[1641805401928,3.77728709,141.89,141.84,3.28014937]
[1641805402928,3.77728709,141.89,141.84,7.28014937]
[1641805403126,3.77728709,141.89,141.85,1.762]
[1641805403329,2.53711131,141.91,141.85,5.04214937]
[1641805403330,3.77728709,141.9,141.85,5.04214937]
[1641805403527,3.77728709,141.9,141.85,8.91979996]
[1641805403727,3.77728709,141.9,141.86,5.04214937]
[1641805403926,3.77728709,141.9,141.86,13.07914937]
[1641805404128,3.77728709,141.9,141.87,3.28014937]
[1641805406531,3.77728709,141.9,141.88,1.76]
[1641805406731,3.77728709,141.9,141.88,10.381]
[1641805407131,3.77728709,141.9,141.89,3.28014937]
[1641805409135,2.53711131,141.91,141.89,3.28014937]
[1641805409335,2.53711131,141.91,141.9,1.76]
[1641805410137,2.53711131,141.91,141.9,5.04014937]
[1641805410338,2.53711131,141.91,141.9,3.28014937]
[1641805410936,2.53711131,141.91,141.88,5.63848499]
[1641805411139,2.53711131,141.91,141.87,1.76]
[1641805411538,2.53711131,141.91,141.89,3.99278422]
[1641805411938,2.53711131,141.91,141.88,3.99278422]
[1641805412538,2.53711131,141.91,141.87,3.99278422]
[1641805412737,2.53711131,141.91,141.88,1.76]
[1641805412938,2.53711131,141.91,141.89,3.99278422]
[1641805413839,2.53711131,141.91,141.88,3.99278422]
[1641805414241,2.53711131,141.91,141.9,3.99278422]
[1641805414542,2.53711131,141.91,141.88,3.99278422]
[1641805417645,2.53711131,141.91,141.87,5.75278422]
[1641805418045,2.53711131,141.91,141.87,3.99278422]
[1641805418245,2.53711131,141.91,141.88,3.99278422]
[1641805418847,4.0,141.9,141.88,3.99278422]
[1641805419046,4.0,141.89,141.85,3.99278422]
[1641805419246,4.0,141.88,141.85,3.99278422]
[1641805419446,7.903,141.9,141.83,3.99278422]
[1641805419646,11.903,141.9,141.83,3.99278422]
[1641805419847,11.903,141.9,141.82,3.99278422]
[1641805420048,11.903,141.9,141.82,5.75478422]
[1641805420347,4.0,141.89,141.82,5.75478422]
[1641805420550,46.3704,141.9,141.82,5.75478422]
[1641805420748,46.3704,141.9,141.83,3.99278422]
[1641805422753,42.3704,141.9,141.83,3.99278422]
[1641805424458,42.3704,141.9,141.84,1.762]
[1641805424856,3.77684373,141.89,141.85,3.99278422]
[1641805425056,3.77684373,141.89,141.86,1.762]
[1641805425255,3.77684373,141.89,141.85,12.55578422]
[1641805425857,3.77684373,141.89,141.86,3.99278422]
[1641805430067,3.77684373,141.89,141.86,6.308]
[1641805430368,3.77684373,141.89,141.87,3.99278422]
[1641805431272,3.77684373,141.9,141.87,3.99278422]
[1641805431672,7.77684373,141.9,141.87,3.99278422]
[1641805432071,3.77684373,141.89,141.87,3.99278422]
[1641805432273,4.0,141.88,141.87,3.99278422]
[1641805432472,4.0,141.88,141.83,3.99278422]
[1641805432871,37.8031,141.89,141.83,3.99278422]
[1641805433073,3.77684373,141.87,141.83,3.99278422]
[1641805433672,3.77684373,141.88,141.81,3.99278422]
[1641805436474,3.77684373,141.88,141.82,24.0]
[1641805436774,3.77684373,141.88,141.83,1.762]
[1641805436973,3.77684373,141.88,141.83,5.762]
[1641805437174,3.77684373,141.88,141.83,5.75478422]
[1641805437574,3.77684373,141.88,141.84,3.99278422]
[1641805437774,3.77684373,141.88,141.84,11.07678422]
[1641805438575,3.77684373,141.88,141.85,3.99278422]
[1641805439376,3.77684373,141.88,141.84,3.99278422]
[1641805447486,16.73084373,141.88,141.84,3.99278422]
[1641805447690,12.73084373,141.88,141.84,3.99278422]
[1641805447891,4.0,141.85,141.84,3.99278422]
[1641805448088,7.676,141.85,141.84,3.99278422]
[1641805448390,11.45284373,141.85,141.81,3.99278422]
[1641805448988,3.77684373,141.84,141.81,3.99278422]
[1641805449589,3.77684373,141.84,141.82,2.4303538]
[1641805449789,3.77684373,141.86,141.82,2.4303538]
[1641805450191,4.0,141.86,141.83,3.99278422]
[1641805450591,3.77684373,141.85,141.82,3.99278422]
[1641805450990,6.33240721,141.85,141.82,3.99278422]
[1641805451494,3.77684373,141.84,141.82,3.99278422]
[1641805452492,33.8031,141.89,141.82,3.99278422]
[1641805452493,33.8031,141.89,141.82,5.75478422]
[1641805452695,33.8031,141.89,141.82,40.13488422]
[1641805452894,3.77665178,141.88,141.83,3.99278422]
[1641805453092,3.77665178,141.88,141.83,10.41378422]
[1641805453699,3.77665178,141.88,141.84,3.99278422]
[1641805454094,3.77665178,141.88,141.85,2.43074605]
[1641805454494,5.77665178,141.88,141.86,3.99278422]
[1641805455096,3.77665178,141.87,141.86,3.99278422]
[1641805459805,7.77665178,141.87,141.86,3.99278422]
[1641805460206,3.77665178,141.87,141.86,3.99278422]
[1641805466013,7.77665178,141.87,141.82,1.762]
[1641805466213,4.0,141.84,141.82,1.762]
[1641805466513,9.41568039,141.87,141.81,2.4303538]
[1641805466514,4.0,141.83,141.81,2.4303538]
[1641805466713,4.0,141.82,141.81,2.4303538]
[1641805467114,4.0,141.83,141.81,2.4303538]
[1641805467315,3.9956301,141.82,141.81,5.44529738]
[1641805467717,7.9956301,141.82,141.81,5.44529738]
[1641805469019,7.9956301,141.82,141.81,2.4303538]
[1641805469517,7.9956301,141.82,141.81,6.42621929]
[1641805470318,15.3976301,141.82,141.81,6.42621929]
[1641805470619,15.3976301,141.82,141.81,2.4303538]
[1641805473925,15.3976301,141.82,141.77,79.68399623]
[1641805474126,4.0,141.79,141.77,79.68399623]
[1641805474325,4.0,141.79,141.78,3.41476787]
[1641805474728,7.9956301,141.79,141.78,3.41476787]
[1641805476528,5.64279625,141.78,141.73,39.51731735]
[1641805476726,4.0,141.74,141.73,39.51731735]
[1641805476926,11.755,141.74,141.73,39.51731735]
[1641805477831,15.75289439,141.74,141.73,41.67385906]
[1641805478037,15.75289439,141.74,141.68,39.78075923]
[1641805478230,4.0,141.69,141.68,39.78075923]
[1641805478428,11.586,141.69,141.68,39.78075923]
[1641805478629,7.586,141.69,141.68,39.78075923]
[1641805478829,11.586,141.69,141.68,39.78075923]
[1641805479229,7.586,141.69,141.68,39.78075923]
[1641805479430,15.58498401,141.69,141.68,42.80070945]
[1641805479731,7.99898401,141.69,141.68,42.80070945]
[1641805480130,3.99898401,141.69,141.68,42.80070945]
[1641805481130,4.0,141.72,141.68,42.80070945]
[1641805481330,4.0,141.72,141.68,48.66470945]
[1641805481929,3.99824033,141.71,141.69,3.01995022]
[1641805482934,7.99824033,141.72,141.69,3.01995022]
[1641805483331,3.99824033,141.71,141.69,3.01995022]
[1641805483831,3.99824033,141.72,141.69,3.01995022]
[1641805484331,38.212,141.73,141.69,3.01995022]
[1641805484530,4.0,141.73,141.69,3.01995022]
[1641805484742,3.99807188,141.71,141.69,3.01995022]
[1641805485133,3.99807188,141.72,141.69,3.01995022]
[1641805486237,7.99807188,141.72,141.69,3.01995022]
[1641805486434,4.0,141.7,141.69,3.01995022]
[1641805486833,7.99807188,141.7,141.69,3.01995022]
[1641805487637,3.99807188,141.7,141.69,3.01995022]
[1641805488237,3.99807188,141.71,141.69,3.01995022]
[1641805488637,7.99807188,141.72,141.69,3.01995022]
[1641805489139,4.0,141.7,141.69,3.01995022]
[1641805489936,7.99807188,141.7,141.69,3.01995022]
[1641805491539,7.99807188,141.7,141.68,39.78075923]
[1641805491740,4.0,141.69,141.68,39.78075923]
[1641805492142,7.99807188,141.69,141.68,39.78075923]
[1641805492544,7.99807188,141.69,141.68,41.48572022]
[1641805494246,7.99807188,141.69,141.68,39.78075923]
[1641805495347,3.99807188,141.69,141.68,39.78075923]
[1641805495548,3.56927188,141.69,141.68,39.78075923]
[1641805495949,2.0,141.73,141.68,39.78075923]
[1641805496650,6.0,141.73,141.68,39.78075923]
[1641805496852,3.99815792,141.72,141.69,1.79408239]
[1641805497051,7.99815792,141.72,141.69,1.79408239]
[1641805497450,4.0,141.71,141.69,1.79408239]
[1641805497650,7.99815792,141.71,141.69,1.79408239]
[1641805498053,4.0,141.7,141.69,1.79408239]
[1641805498355,7.99815792,141.7,141.69,1.79408239]
[1641805498551,18.59115792,141.7,141.69,1.79408239]
[1641805498752,5.6464592,141.69,141.68,39.78075923]
[1641805498955,11.4104592,141.69,141.68,38.38208937]
[1641805499352,9.76215792,141.69,141.68,32.7348437]
[1641805499752,7.99815792,141.69,141.68,32.7348437]
[1641805500857,23.50830748,141.69,141.68,19.7348437]
[1641805501058,23.50830748,141.69,141.67,5.15194316]
[1641805501257,5.764,141.68,141.67,5.15194316]
[1641805501756,21.6431874,141.68,141.67,5.15194316]
[1641805502858,31.76047038,141.68,141.67,5.15194316]
[1641805505160,29.99647038,141.68,141.67,5.15194316]
[1641805505560,18.1154409,141.68,141.67,5.15194316]
[1641805506161,29.99586101,141.68,141.67,5.15194316]
[1641805509164,18.1154409,141.68,141.67,5.15194316]
[1641805514067,18.1154409,141.68,141.67,13.63294316]
[1641805514467,14.1154409,141.68,141.67,13.63294316]
[1641805514870,16.1154409,141.68,141.67,13.63294316]
[1641805515972,16.1154409,141.68,141.67,15.82850063]
[1641805517974,16.1154409,141.68,141.67,7.34750063]
[1641805518574,16.1154409,141.68,141.67,5.15194316]
[1641805519578,16.1154409,141.68,141.67,7.34761302]
[1641805520378,16.1154409,141.68,141.67,5.15194316]
[1641805520681,16.1154409,141.68,141.67,7.34758758]
[1641805521380,16.1154409,141.68,141.67,5.15194316]
[1641805521780,16.1154409,141.68,141.67,7.34762045]
[1641805522081,24.6304409,141.68,141.67,7.34762045]
[1641805522281,24.6304409,141.68,141.67,5.15194316]
[1641805522679,24.6304409,141.68,141.67,7.34763183]
[1641805523480,24.6304409,141.68,141.67,5.15194316]
[1641805523981,24.6304409,141.68,141.67,7.34760364]
[1641805526984,28.6304409,141.68,141.67,7.34760364]
[1641805527187,24.6304409,141.68,141.67,7.34760364]
[1641805527386,16.1154409,141.68,141.67,7.34760364]
[1641805528386,16.1154409,141.68,141.67,13.15060364]
[1641805529590,12.11728298,141.68,141.67,13.15060364]
[1641805531097,7.59948298,141.68,141.67,13.15060364]
[1641805531294,14.94341409,141.72,141.67,13.15060364]
[1641805531497,14.94341409,141.72,141.67,14.91460364]
[1641805531694,12.94341409,141.72,141.67,14.91460364]
[1641805531895,3.99873944,141.71,141.68,2.19566048]
[1641805535302,5.99873944,141.71,141.68,2.19566048]
[1641805536102,3.99873944,141.7,141.68,2.19566048]
[1641805542204,7.99873944,141.7,141.68,2.19566048]
[1641805542505,7.99873944,141.7,141.67,5.15194316]
[1641805542804,3.99873944,141.69,141.67,5.15194316]
[1641805544706,7.99873944,141.69,141.67,5.15194316]
[1641805544907,4.0,141.68,141.67,5.15194316]
[1641805545106,16.41873944,141.68,141.66,53.72354301]
[1641805545306,4.0,141.67,141.66,53.72354301]
[1641805545507,7.99873944,141.67,141.66,53.72354301]
[1641805548109,3.99873944,141.67,141.66,53.72354301]
[1641805548509,7.99873944,141.67,141.66,53.72354301]
[1641805549409,13.67173944,141.67,141.66,47.72354301]
[1641805549809,13.67173944,141.67,141.66,39.14874301]
[1641805550012,20.73413571,141.67,141.66,19.07644532]
[1641805550211,20.73413571,141.67,141.66,16.49144532]
[1641805550611,20.73413571,141.67,141.66,11.86244532]
[1641805550811,20.73413571,141.67,141.66,6.44244532]
[1641805551011,35.03181143,141.67,141.66,1.46244532]
[1641805551813,20.73413571,141.67,141.66,1.46244532]
[1641805553614,35.03183759,141.67,141.66,1.46244532]
[1641805556418,20.73413571,141.67,141.66,1.46244532]
[1641805559922,35.03158609,141.67,141.66,1.46244532]
[1641805560923,20.73413571,141.67,141.66,1.46244532]
[1641805564630,35.03150656,141.67,141.66,1.46244532]
[1641805564829,35.03150656,141.67,141.56,1.764]
[1641805565029,4.0,141.61,141.56,1.764]
[1641805565231,12.965,141.61,141.56,1.764]
[1641805565730,3.99873944,141.6,141.57,1.73692947]
[1641805565931,3.99873944,141.6,141.58,1.764]
[1641805566329,3.99873944,141.61,141.59,1.73692947]
[1641805566831,3.99873944,141.62,141.59,1.73692947]
[1641805567231,3.99873944,141.62,141.6,1.764]
[1641805567432,3.99873944,141.64,141.6,1.764]
[1641805567833,3.99873944,141.64,141.61,1.73692947]
[1641805569233,7.99873944,141.64,141.61,1.73692947]
[1641805569433,4.0,141.63,141.61,1.73692947]
[1641805569834,7.99873944,141.63,141.61,1.73692947]
[1641805570237,3.99873944,141.62,141.57,1.73692947]
[1641805570435,3.99873944,141.62,141.58,1.764]
[1641805571033,3.99873944,141.62,141.59,1.73692947]
[1641805571634,3.99873944,141.62,141.57,1.73692947]
[1641805571835,3.99873944,141.62,141.58,1.764]
[1641805572435,3.99873944,141.62,141.59,1.73692947]
[1641805573134,3.99873944,141.62,141.57,1.73692947]
[1641805573536,7.99873944,141.62,141.57,1.73692947]
[1641805573735,13.64798706,141.62,141.57,1.73692947]
[1641805574140,3.99873944,141.61,141.57,1.73692947]
[1641805574537,7.99873944,141.61,141.57,1.73692947]
[1641805574737,9.65006697,141.6,141.57,1.73692947]
[1641805574935,21.45880641,141.6,141.56,1.73692947]
[1641805575335,3.99873944,141.59,141.56,1.73692947]
[1641805576138,3.99873944,141.59,141.54,1.73692947]
[1641805576336,3.99873944,141.59,141.55,1.764]
[1641805576536,3.99873944,141.59,141.54,1.73692947]
[1641805579540,5.65075008,141.58,141.54,1.73692947]
[1641805580342,5.65075008,141.58,141.53,1.73692947]
[1641805580741,9.65075008,141.58,141.53,1.73692947]
[1641805581140,4.00300997,141.57,141.53,1.73692947]
[1641805582646,4.00300997,141.57,141.53,16.71336157]
[1641805583247,4.00300997,141.57,141.54,1.73692947]
[1641805585152,4.00300997,141.57,141.54,8.76592947]
[1641805585349,2.0,141.62,141.55,1.766]
[1641805585950,4.00232464,141.61,141.56,1.73692947]
[1641805586152,4.00232464,141.61,141.57,1.764]
[1641805586351,4.00232464,141.61,141.57,9.18]
[1641805586953,4.00232464,141.61,141.58,1.73692947]
[1641805587155,2.0,141.62,141.58,5.73692947]
[1641805587454,2.0,141.62,141.58,10.33692947]
[1641805587654,2.0,141.62,141.59,1.764]
[1641805588656,4.00177906,141.61,141.6,1.7766941]
[1641805592660,2.0,141.62,141.6,1.7766941]
[1641805592861,2.0,141.62,141.6,10.6666941]
[1641805593561,2.0,141.62,141.61,1.7766941]
[1641805594262,6.0018062,141.62,141.61,1.7766941]
[1641805594761,6.0018062,141.62,141.6,1.7766941]
[1641805595261,2.0,141.62,141.6,1.7766941]
[1641805595963,2.0,141.62,141.61,2.41756044]
[1641805596663,2.0,141.62,141.61,4.19425454]
[1641805597064,6.00197837,141.62,141.61,4.19425454]
[1641805597464,6.00197837,141.62,141.61,1.7766941]
[1641805598071,6.00197837,141.62,141.58,1.7766941]
[1641805598470,4.00197837,141.61,141.58,1.7766941]
[1641805599072,4.00197837,141.61,141.57,1.7766941]
[1641805599474,4.00197837,141.61,141.59,1.7766941]
[1641805599873,4.00197837,141.61,141.57,1.7766941]
[1641805602676,4.00197837,141.61,141.58,4.0]
[1641805602875,4.00197837,141.61,141.58,5.764]
[1641805603277,2.0,141.62,141.59,1.7766941]
[1641805604278,2.0,141.62,141.59,5.7766941]
[1641805604679,14.97560902,141.63,141.6,1.7766941]
[1641805605079,2.0,141.61,141.6,1.7766941]
[1641805606880,2.0,141.61,141.59,1.7766941]
[1641805607280,2.0,141.61,141.6,1.7766941]
[1641805607683,2.0,141.61,141.58,1.7766941]
[1641805609582,2.0,141.61,141.57,5.7766941]
[1641805609782,2.0,141.61,141.58,4.0]
[1641805609984,2.0,141.61,141.58,5.7766941]
[1641805610186,2.0,141.61,141.59,4.0]
[1641805610385,2.0,141.61,141.59,7.5406941]
[1641805610584,2.0,141.61,141.59,5.7766941]
[1641805610884,2.0,141.61,141.6,1.7766941]
[1641805611487,6.00191508,141.61,141.6,1.7766941]
[1641805614686,2.0,141.61,141.6,1.7766941]
[1641805617391,8.857,141.61,141.6,1.7766941]
[1641805617691,8.857,141.61,141.59,1.7766941]
[1641805621795,8.857,141.61,141.57,5.7766941]
[1641805622494,8.857,141.61,141.58,1.7766941]
[1641805623295,8.857,141.61,141.58,5.7766941]
[1641805623498,8.857,141.61,141.59,1.764]
[1641805623697,8.857,141.61,141.58,5.7766941]
[1641805623895,8.857,141.61,141.6,1.7766941]
[1641805624398,12.85886825,141.61,141.6,4.0]
[1641805624596,6.00186825,141.61,141.6,12.149]
[1641805624797,2.0,141.61,141.6,12.149]
[1641805624997,2.0,141.61,141.6,13.9256941]
[1641805625797,2.0,141.61,141.6,9.9256941]
[1641805625998,2.0,141.61,141.6,1.7766941]
[1641805626899,2.0,141.61,141.6,5.7766941]
[1641805627498,2.0,141.61,141.6,1.7766941]
[1641805627701,2.0,141.61,141.6,7.5416941]
[1641805627900,2.0,141.61,141.6,5.7766941]
[1641805628400,2.0,141.61,141.6,1.7766941]
[1641805628603,2.0,141.61,141.6,3.5406941]
[1641805628800,6.00178033,141.61,141.6,3.5406941]
[1641805629201,2.0,141.61,141.6,3.5406941]
[1641805629503,2.0,141.61,141.6,7.5406941]
[1641805629701,2.0,141.61,141.6,5.7766941]
[1641805630904,14.96222963,141.66,141.6,5.7766941]
[1641805631106,14.96222963,141.66,141.65,4.0]
[1641805631306,14.96222963,141.66,141.65,10.859]
[1641805631607,13.38982963,141.66,141.65,12.6356941]
[1641805631806,13.38982963,141.66,141.65,14.3996941]
[1641805632008,12.96222963,141.66,141.65,14.3996941]
[1641805635209,12.96222963,141.66,141.65,12.6356941]
[1641805635408,14.96222963,141.66,141.65,14.3996941]
[1641805638313,14.96222963,141.66,141.65,12.6356941]
[1641805643823,14.96222963,141.66,141.65,14.3996941]
[1641805646129,14.96222963,141.66,141.65,16.80749553]
[1641805646627,10.1840787,141.69,141.65,16.80749553]
[1641805646927,10.1840787,141.69,141.68,4.0]
[1641805647126,8.1840787,141.69,141.68,5.764]
[1641805647527,8.1840787,141.69,141.68,7.5406941]
[1641805648131,8.1840787,141.69,141.68,3.5406941]
[1641805648331,12.18405332,141.69,141.65,2.40780143]
[1641805648529,18.43005332,141.69,141.63,4.0]